fUSD/lending_fUSD_20240902
["ID","MTS","AMOUNT","RATE_DAILY","PERIOD"]
[336920427,1725241887590,-500.0,0.00022469,2]
[336920428,1725241887599,-500.0,0.00022469,2]
[336920429,1725241887608,-500.0,0.00022469,2]
[336920430,1725241887618,-387.2466348,0.00022469,2]
[336920431,1725241887629,-520.20783501,0.00022469,2]
[336920432,1725241887639,-500.0,0.00022469,2]
[336920433,1725241887651,-500.0,0.00022469,2]
[336920434,1725241887661,-500.0,0.00022469,2]
[336920435,1725241887671,-500.0,0.00022469,2]
[336920436,1725241887680,-500.0,0.00022469,2]
[336920437,1725241887691,-151.0,0.00022469,7]
[336920438,1725241887700,-521.14751748,0.00022469,2]
[336920439,1725241887710,-500.0,0.00022469,2]
[336920440,1725241887721,-172.676686,0.00022469,7]
[336920441,1725241887731,-591.45,0.00022469,2]
[336920442,1725241887739,-547.28,0.00022469,2]
[336920443,1725241887753,-500.0,0.00022469,2]
[336920444,1725241887764,-500.0,0.00022469,2]
[336920445,1725241887775,-500.0,0.00022469,2]
[336920446,1725241887785,-500.0,0.00022469,2]
[336920447,1725241887794,-500.0,0.00022469,2]
[336920448,1725241887951,-500.0,0.00022469,2]
[336920449,1725241887972,-507.94983088,0.00022469,2]
[336920450,1725241887983,-500.0,0.00022469,2]
[336920451,1725241887992,-500.0,0.00022469,2]
[336920452,1725241888002,-666.91,0.00022469,2]
[336920453,1725241888011,-500.0,0.00022469,2]
[336920454,1725241888021,-500.0,0.00022469,2]
[336920455,1725241888030,-500.0,0.00022469,2]
[336920456,1725241888039,-500.0,0.00022469,2]
[336920457,1725241888049,-500.0,0.00022469,2]
[336920458,1725241888058,-151.0,0.00022469,7]
[336920459,1725241888069,-151.0,0.00022469,7]
[336920460,1725241888079,-735.62,0.00022469,2]
[336920461,1725241888089,-500.0,0.00022469,2]
[336920462,1725241888099,-500.0,0.00022469,2]
[336920463,1725241888109,-583.94,0.00022469,2]
[336920464,1725241888119,-817.6,0.00022469,2]
[336920465,1725241888128,-500.0,0.00022469,2]
[336920466,1725241888137,-516.67772467,0.00022469,2]
[336920467,1725241888147,-500.0,0.00022469,2]
[336920468,1725241888157,-500.0,0.00022469,2]
[336920469,1725241888167,-500.0,0.00022469,2]
[336920470,1725241888176,-952.8,0.00022469,2]
[336920471,1725241888185,-1103.85,0.00022469,2]
[336920472,1725241888194,-500.0,0.00022469,2]
[336920473,1725241888204,-500.0,0.00022469,2]
[336920474,1725241888213,-536.22,0.00022469,2]
[336920475,1725241888222,-500.0,0.00022469,2]
[336920476,1725241888231,-526.37,0.00022469,2]
[336920477,1725241888241,-594.92,0.00022469,2]
[336920478,1725241888251,-500.0,0.00022469,2]
[336920479,1725241888261,-500.0,0.00022469,2]
[336920480,1725241888270,-500.0,0.00022469,2]
[336920481,1725241888280,-538.83,0.00022469,2]
[336920482,1725241888289,-500.0,0.00022469,2]
[336920483,1725241888299,-609.07,0.00022469,2]
[336920484,1725241888308,-500.0,0.00022469,2]
[336920485,1725241888318,-798.56,0.00022469,2]
[336920486,1725241888327,-676.18,0.00022469,2]
[336920487,1725241888337,-521.53727007,0.00022469,2]
[336920488,1725241888347,-500.0,0.00022469,2]
[336920489,1725241888356,-831.93,0.00022469,2]
[336920490,1725241888366,-636.79,0.00022469,2]
[336920491,1725241888376,-914.46,0.00022469,2]
[336920492,1725241888386,-500.0,0.00022469,2]
[336920493,1725241888395,-824.49,0.00022469,2]
[336920494,1725241888405,-757.29,0.00022469,2]
[336920495,1725241888414,-810.99,0.00022469,2]
[336920496,1725241888423,-881.62,0.00022469,2]
[336920497,1725241888433,-500.0,0.00022469,2]
[336920498,1725241888442,-500.0,0.00022469,2]
[336920499,1725241888452,-500.0,0.00022469,2]
[336920500,1725241888461,-556.08,0.00022469,2]
[336920501,1725241888471,-868.21,0.00022469,2]
[336920502,1725241888480,-859.16,0.00022469,2]
[336920503,1725241888490,-993.39,0.00022469,2]
[336920504,1725241888500,-795.39,0.00022469,2]
[336920505,1725241888511,-526.65,0.00022469,2]
[336920506,1725241888521,-500.0,0.00022469,2]
[336920507,1725241888532,-629.84,0.00022469,2]
[336920508,1725241888542,-943.94,0.00022469,2]
[336920509,1725241888552,-912.36,0.00022469,2]
[336920510,1725241888561,-500.0,0.00022469,2]
[336920511,1725241888571,-698.12,0.00022469,2]
[336920512,1725241888580,-700.63,0.00022469,2]
[336920513,1725241888590,-968.18,0.00022469,2]
[336920514,1725241888600,-828.97,0.00022469,2]
[336920515,1725241888609,-880.51,0.00022469,2]
[336920516,1725241888618,-500.0,0.00022469,2]
[336920517,1725241888629,-326.14430284,0.00022469,2]
[336920518,1725241888639,-827.46,0.00022469,2]
[336920519,1725241888648,-688.28,0.00022469,2]
[336920520,1725241888658,-845.74,0.00022469,2]
[336920521,1725241888667,-151.0,0.00022469,7]
[336920522,1725241888679,-1011.79,0.00022469,2]
[336920523,1725241888688,-653.12,0.00022469,2]
[336920524,1725241888697,-608.89,0.00022469,2]
[336920525,1725241888708,-698.03,0.00022469,2]
[336920526,1725241888719,-500.0,0.00022469,2]
[336920527,1725241888729,-1593.81,0.00022469,2]
[336920528,1725241888738,-210.42243021,0.00022469,2]
[336920529,1725241888748,-620.2,0.00022469,2]
[336920530,1725241888762,-756.76,0.00022469,2]
[336920531,1725241888771,-221.21661507,0.00022472,2]
[336920532,1725241888781,-682.95,0.00022473,2]
[336920533,1725241888792,-764.66,0.00022473,2]
[336920534,1725241888804,-500.0,0.00022473,2]
[336920535,1725241888814,-653.29,0.00022473,2]
[336920536,1725241888823,-2136.87,0.00022473,2]
[336920537,1725241888834,-500.0,0.00022473,2]
[336920538,1725241888844,-705.48,0.00022473,2]
[336920539,1725241888854,-759.66,0.00022473,2]
[336920540,1725241888863,-221.21661507,0.00022473,2]
[336920541,1725241888872,-817.06,0.00022474,2]
[336920542,1725241888882,-1099.01,0.00022474,2]
[336920543,1725241888891,-736.59,0.00022474,2]
[336920544,1725241888901,-913.51,0.00022474,2]
[336920545,1725241888912,-578.71,0.00022474,2]
[336920546,1725241888922,-520.92,0.00022474,2]
[336920547,1725241888932,-953.71,0.00022474,2]
[336920548,1725241888943,-2875.94,0.00022474,2]
[336920549,1725241888952,-2846.06,0.00022474,2]
[336920550,1725241888963,-1332.84,0.00022474,2]
[336920551,1725241888973,-1576.81,0.00022474,2]
[336920552,1725241888982,-1025.23,0.00022474,2]
[336920553,1725241888992,-1401.94,0.00022474,2]
[336920554,1725241889002,-546.26,0.00022474,2]
[336920555,1725241889011,-1370.52,0.00022474,2]
[336920556,1725241889021,-498.85417545,0.00022474,2]
[336920557,1725241889031,-1773.37,0.00022474,2]
[336920558,1725241889041,-1341.5,0.00022474,2]
[336920559,1725241889051,-503.56627997,0.00022474,2]
[336920560,1725241889062,-500.0,0.00022474,2]
[336920561,1725241889082,-576.61,0.00022474,2]
[336920562,1725241889100,-2010.79,0.00022474,2]
[336920563,1725241889117,-500.0,0.00022474,2]
[336920564,1725241889136,-311.82698914,0.00022474,2]
[336920565,1725241889155,-1590.93,0.00022474,2]
[336920566,1725241889174,-2423.43,0.00022474,2]
[336920567,1725241889189,-560.77269995,0.00022474,2]
[336920568,1725241889205,-892.18,0.00022474,2]
[336920569,1725241889224,-500.0,0.00022474,2]
[336920570,1725241889244,-1182.64,0.00022474,2]
[336920571,1725241889259,-1534.04,0.00022474,2]
[336920572,1725241889276,-1246.98,0.00022474,2]
[336920573,1725241889292,-346.97002172,0.00022474,2]
[336920574,1725241889312,-1178.51,0.00022474,2]
[336920575,1725241889327,-646.5,0.00022474,2]
[336920576,1725241889344,-500.0,0.00022474,2]
[336920577,1725241889361,-3262.11,0.00022474,2]
[336920578,1725241889376,-500.0,0.00022474,2]
[336920579,1725241889391,-500.0,0.00022474,2]
[336920580,1725241889406,-824.83,0.00022474,2]
[336920581,1725241889422,-500.0,0.00022474,2]
[336920582,1725241889438,-2494.8,0.00022474,2]
[336920583,1725241889454,-3138.29,0.00022474,2]
[336920584,1725241889471,-785.22,0.00022474,2]
[336920585,1725241889487,-500.0,0.00022474,2]
[336920586,1725241889503,-1944.19,0.00022474,2]
[336920587,1725241889517,-500.0,0.00022474,2]
[336920588,1725241889533,-642.27,0.00022474,2]
[336920589,1725241889548,-500.0,0.00022474,2]
[336920590,1725241889562,-1353.25,0.00022474,2]
[336920591,1725241889577,-3954.94,0.00022474,2]
[336920592,1725241889592,-500.0,0.00022474,2]
[336920593,1725241889609,-710.69,0.00022474,2]
[336920594,1725241889625,-626.61,0.00022474,2]
[336920595,1725241889641,-500.0,0.00022474,2]
[336920596,1725241889657,-2183.39,0.00022474,2]
[336920597,1725241889672,-500.0,0.00022474,2]
[336920598,1725241889688,-500.0,0.00022474,2]
[336920599,1725241889704,-1739.01,0.00022474,2]
[336920600,1725241889721,-500.0,0.00022474,2]
[336920601,1725241889735,-517.31,0.00022474,2]
[336920602,1725241889750,-2549.62,0.00022474,2]
[336920603,1725241889767,-1518.56,0.00022474,2]
[336920604,1725241889783,-252.97478381,0.00022474,2]
[336920605,1725241889799,-658.75,0.00022474,2]
[336920606,1725241889815,-658.75,0.00022474,2]
[336920607,1725241889832,-619.79,0.00022474,2]
[336920608,1725241889849,-1323.87,0.00022474,2]
[336920609,1725241889866,-1323.87,0.00022474,2]
[336920610,1725241889881,-500.0,0.00022474,2]
[336920611,1725241889897,-500.0,0.00022474,2]
[336920612,1725241889913,-2189.33,0.00022474,2]
[336920613,1725241889928,-500.0,0.00022474,2]
[336920614,1725241889944,-658.7,0.00022474,2]
[336920615,1725241889959,-2672.93,0.00022474,2]
[336920616,1725241889976,-500.0,0.00022474,2]
[336920617,1725241889994,-500.0,0.00022474,2]
[336920618,1725241890009,-500.0,0.00022474,2]
[336920619,1725241890024,-500.0,0.00022474,2]
[336920620,1725241890040,-500.0,0.00022474,2]
[336920621,1725241890054,-1391.92,0.00022474,2]
[336920622,1725241890069,-1046.87,0.00022474,2]
[336920623,1725241890084,-793.48,0.00022474,2]
[336920624,1725241890099,-1303.18,0.00022474,2]
[336920625,1725241890114,-793.48,0.00022474,2]
[336920626,1725241890133,-1303.18,0.00022474,2]
[336920627,1725241890149,-500.0,0.00022474,2]
[336920628,1725241890163,-500.0,0.00022474,2]
[336920629,1725241890178,-953.42,0.00022474,2]
[336920630,1725241890192,-500.0,0.00022474,2]
[336920631,1725241890206,-500.0,0.00022474,2]
[336920632,1725241890221,-500.0,0.00022474,2]
[336920633,1725241890236,-976.33,0.00022474,2]
[336920634,1725241890250,-976.33,0.00022474,2]
[336920635,1725241890266,-656.52,0.00022474,2]
[336920636,1725241890281,-656.52,0.00022474,2]
[336920637,1725241890296,-1233.94,0.00022474,2]
[336920638,1725241890311,-500.0,0.00022474,2]
[336920639,1725241890327,-1233.94,0.00022474,2]
[336920640,1725241890341,-544.48,0.00022474,2]
[336920641,1725241890357,-544.48,0.00022474,2]
[336920642,1725241890371,-1588.18,0.00022474,2]
[336920643,1725241890385,-1153.39,0.00022474,2]
[336920644,1725241890400,-1153.39,0.00022474,2]
[336920645,1725241890415,-1612.92,0.00022474,2]
[336920646,1725241890430,-1612.92,0.00022474,2]
[336920647,1725241890445,-1798.3,0.00022474,2]
[336920648,1725241890459,-1798.3,0.00022474,2]
[336920649,1725241890475,-745.45,0.00022474,2]
[336920650,1725241890490,-745.45,0.00022474,2]
[336920651,1725241890504,-3918.76,0.00022474,2]
[336920652,1725241890520,-1391.48,0.00022474,2]
[336920653,1725241890536,-1391.48,0.00022474,2]
[336920654,1725241890553,-579.33,0.00022474,2]
[336920655,1725241890573,-717.79,0.00022474,2]
[336920656,1725241890589,-717.79,0.00022474,2]
[336920657,1725241890606,-500.0,0.00022474,2]
[336920658,1725241890620,-500.0,0.00022474,2]
[336920659,1725241890635,-1768.03,0.00022474,2]
[336920660,1725241890649,-1768.03,0.00022474,2]
[336920661,1725241890665,-1275.08,0.00022474,2]
[336920662,1725241890680,-1275.08,0.00022474,2]
[336920663,1725241890694,-744.88,0.00022474,2]
[336920664,1725241890708,-205.48623416,0.00022474,2]
[336920665,1725241890723,-897.76,0.00022474,2]
[336920666,1725241890737,-897.76,0.00022474,2]
[336920667,1725241890751,-1063.26,0.00022474,2]
[336920668,1725241890768,-1063.26,0.00022474,2]
[336920669,1725241890782,-500.0,0.00022474,2]
[336920670,1725241890797,-840.6,0.00022474,2]
[336920671,1725241890811,-840.6,0.00022474,2]
[336920672,1725241890825,-806.42,0.00022474,2]
[336920673,1725241890843,-1110.72,0.00022474,2]
[336920674,1725241891093,-1110.72,0.00022474,2]
[336920675,1725241891103,-728.3,0.00022474,2]
[336920676,1725241891113,-975.4,0.00022474,2]
[336920677,1725241891122,-500.0,0.00022474,2]
[336920678,1725241891132,-500.0,0.00022474,2]
[336920679,1725241891141,-565.0,0.00022474,2]
[336920680,1725241891151,-773.1,0.00022474,2]
[336920681,1725241891160,-773.1,0.00022474,2]
[336920682,1725241891170,-999.0,0.00022474,2]
[336920683,1725241891180,-1991.07,0.00022474,2]
[336920684,1725241891189,-523.72280381,0.00022474,2]
[336920685,1725241891199,-500.0,0.00022474,2]
[336920686,1725241891209,-156.53698187,0.00022474,2]
[336920687,1725241891218,-500.0,0.00022474,2]
[336920688,1725241891230,-500.0,0.00022474,2]
[336920689,1725241891240,-500.0,0.00022474,2]
[336920690,1725241891250,-808.3,0.00022474,2]
[336920691,1725241891259,-1380.25,0.00022474,2]
[336920692,1725241891269,-681.63,0.00022474,2]
[336920693,1725241891278,-681.63,0.00022474,2]
[336920694,1725241891288,-500.0,0.00022474,2]
[336920695,1725241891297,-500.0,0.00022474,2]
[336920696,1725241891306,-500.0,0.00022474,2]
[336920697,1725241891315,-500.0,0.00022474,2]
[336920698,1725241891325,-500.0,0.00022474,2]
[336920699,1725241891334,-549.42,0.00022474,2]
[336920700,1725241891344,-549.42,0.00022474,2]
[336920701,1725241891353,-586.82,0.00022474,2]
[336920702,1725241891363,-1009.91,0.00022474,2]
[336920703,1725241891372,-744.6,0.00022474,2]
[336920704,1725241891382,-744.6,0.00022474,2]
[336920705,1725241891391,-679.71,0.00022474,2]
[336920706,1725241891401,-538.44,0.00022474,2]
[336920707,1725241891411,-538.44,0.00022474,2]
[336920708,1725241891421,-699.89,0.00022474,2]
[336920709,1725241891431,-699.89,0.00022474,2]
[336920710,1725241891442,-500.0,0.00022474,2]
[336920711,1725241891452,-500.0,0.00022474,2]
[336920712,1725241891463,-503.74,0.00022474,2]
[336920713,1725241891474,-503.74,0.00022474,2]
[336920714,1725241891483,-546.52,0.00022474,2]
[336920715,1725241891493,-546.52,0.00022474,2]
[336920716,1725241891502,-624.25,0.00022474,2]
[336920717,1725241891512,-1030.96,0.00022474,2]
[336920718,1725241891521,-583.28,0.00022474,2]
[336920719,1725241891532,-583.28,0.00022474,2]
[336920720,1725241891541,-715.1,0.00022474,2]
[336920721,1725241891552,-715.1,0.00022474,2]
[336920722,1725241891562,-500.0,0.00022474,2]
[336920723,1725241891572,-500.0,0.00022474,2]
[336920724,1725241891582,-500.0,0.00022474,2]
[336920725,1725241891592,-500.0,0.00022474,2]
[336920726,1725241891602,-1248.92,0.00022474,2]
[336920727,1725241891611,-895.04,0.00022474,2]
[336920728,1725241891622,-500.0,0.00022474,2]
[336920729,1725241891633,-500.0,0.00022474,2]
[336920730,1725241891644,-616.48,0.00022474,2]
[336920731,1725241891654,-767.71,0.00022474,2]
[336920732,1725241891664,-767.71,0.00022474,2]
[336920733,1725241891673,-9343.77,0.00022474,2]
[336920734,1725241891682,-500.0,0.00022474,2]
[336920735,1725241891691,-500.0,0.00022474,2]
[336920736,1725241891700,-293.50544255,0.00022474,2]
[336920737,1725241891709,-500.0,0.00022474,2]
[336920738,1725241891718,-500.0,0.00022474,2]
[336920739,1725241891729,-500.0,0.00022474,2]
[336920740,1725241891738,-500.0,0.00022474,2]
[336920741,1725241891749,-682.95,0.00022474,2]
[336920742,1725241891760,-682.95,0.00022474,2]
[336920743,1725241891769,-682.95,0.00022474,2]
[336920744,1725241891778,-764.66,0.00022474,2]
[336920745,1725241891787,-764.66,0.00022474,2]
[336920746,1725241891798,-764.66,0.00022474,2]
[336920747,1725241891807,-671.48,0.00022474,2]
[336920748,1725241891817,-500.0,0.00022474,2]
[336920749,1725241891828,-834.73,0.00022474,2]
[336920750,1725241891840,-500.0,0.00022474,2]
[336920751,1725241891849,-500.0,0.00022474,2]
[336920752,1725241891860,-500.0,0.00022474,2]
[336920753,1725241891870,-772.26,0.00022474,2]
[336920754,1725241891881,-772.26,0.00022474,2]
[336920755,1725241891891,-714.86,0.00022474,2]
[336920756,1725241891902,-714.86,0.00022474,2]
[336920757,1725241891913,-1169.01,0.00022474,2]
[336920758,1725241891924,-503.31,0.00022474,2]
[336920759,1725241891935,-503.31,0.00022474,2]
[336920760,1725241891945,-500.0,0.00022474,2]
[336920761,1725241891957,-1126.39,0.00022474,2]
[336920762,1725241891967,-500.0,0.00022474,2]
[336920763,1725241891977,-500.0,0.00022474,2]
[336920764,1725241891987,-500.0,0.00022474,2]
[336920765,1725241891997,-930.31,0.00022474,2]
[336920766,1725241892008,-723.85,0.00022474,2]
[336920767,1725241892020,-500.0,0.00022474,2]
[336920768,1725241892030,-789.66,0.00022474,2]
[336920769,1725241892040,-500.0,0.00022474,2]
[336920770,1725241892050,-789.66,0.00022474,2]
[336920771,1725241892061,-901.22,0.00022474,2]
[336920772,1725241892070,-575.47,0.00022474,2]
[336920773,1725241892080,-575.47,0.00022474,2]
[336920774,1725241892089,-962.71,0.00022474,2]
[336920775,1725241892099,-962.71,0.00022474,2]
[336920776,1725241892109,-500.0,0.00022474,2]
[336920777,1725241892118,-500.0,0.00022474,2]
[336920778,1725241892128,-539.33,0.00022474,2]
[336920779,1725241892137,-500.0,0.00022474,2]
[336920780,1725241892147,-539.33,0.00022474,2]
[336920781,1725241892156,-1300.94,0.00022474,2]
[336920782,1725241892165,-653.29,0.00022474,2]
[336920783,1725241892174,-1300.94,0.00022474,2]
[336920784,1725241892183,-653.29,0.00022474,2]
[336920785,1725241892193,-653.29,0.00022474,2]
[336920786,1725241892202,-1015.25,0.00022474,2]
[336920787,1725241892211,-556.06,0.00022474,2]
[336920788,1725241892220,-556.06,0.00022474,2]
[336920789,1725241892230,-2551.2,0.00022474,2]
[336920790,1725241892239,-774.0,0.00022474,2]
[336920791,1725241892249,-774.0,0.00022474,2]
[336920792,1725241892258,-2136.87,0.00022474,2]
[336920793,1725241892268,-2136.87,0.00022474,2]
[336920794,1725241892278,-2136.87,0.00022474,2]
[336920795,1725241892287,-500.0,0.00022474,2]
[336920796,1725241892296,-500.0,0.00022474,2]
[336920797,1725241892305,-505.99889248,0.00022474,2]
[336920798,1725241892315,-753.52,0.00022474,2]
[336920799,1725241892324,-500.0,0.00022474,2]
[336920800,1725241892335,-403.91019008,0.00022474,2]
[336920801,1725241892345,-1642.36,0.00022474,2]
[336920802,1725241892357,-959.07,0.00022474,2]
[336920803,1725241892368,-959.07,0.00022474,2]
[336920804,1725241892378,-861.18,0.00022474,2]
[336920805,1725241892388,-861.18,0.00022474,2]
[336920806,1725241892398,-591.61,0.00022474,2]
[336920807,1725241892408,-591.61,0.00022474,2]
[336920808,1725241892417,-1901.91,0.00022474,2]
[336920809,1725241892426,-670.58,0.00022474,2]
[336920810,1725241892437,-705.48,0.00022474,2]
[336920811,1725241892447,-705.48,0.00022474,2]
[336920812,1725241892457,-759.66,0.00022474,2]
[336920813,1725241892466,-705.48,0.00022474,2]
[336920814,1725241892477,-759.66,0.00022474,2]
[336920815,1725241892486,-759.66,0.00022474,2]
[336920816,1725241892495,-500.0,0.00022474,2]
[336920817,1725241892505,-705.48,0.00022474,2]
[336920818,1725241892516,-198.0,0.00022475,30]
[336920819,1725241892527,-1352.12,0.00022475,2]
[336920820,1725241892537,-691.79,0.00022475,2]
[336920821,1725241892546,-500.0,0.00022475,2]
[336920822,1725241892555,-500.0,0.00022475,2]
[336920823,1725241892564,-500.0,0.00022475,2]
[336920824,1725241892573,-243.95,0.00022475,2]
[336920825,1725241892582,-500.0,0.00022475,2]
[336920826,1725241892591,-1324.68,0.00022475,2]
[336920827,1725241892600,-1476.63,0.00022475,2]
[336920828,1725241892609,-500.0,0.00022475,2]
[336920829,1725241892618,-500.0,0.00022475,2]
[336920830,1725241892627,-500.0,0.00022475,2]
[336920831,1725241892637,-500.0,0.00022475,2]
[336920832,1725241892646,-500.0,0.00022475,2]
[336920833,1725241892655,-500.0,0.00022475,2]
[336920834,1725241892664,-500.0,0.00022475,2]
[336920835,1725241892673,-803.39,0.00022475,2]
[336920836,1725241892682,-500.0,0.00022475,2]
[336920837,1725241892691,-500.0,0.00022475,2]
[336920838,1725241892700,-500.0,0.00022475,2]
[336920839,1725241892709,-500.0,0.00022475,2]
[336920840,1725241892718,-822.34,0.00022475,2]
[336920841,1725241892728,-500.0,0.00022475,2]
[336920842,1725241892737,-701.49,0.00022475,2]
[336920843,1725241892746,-830.7,0.00022475,2]
[336920844,1725241892759,-500.0,0.00022475,2]
[336920845,1725241892768,-500.0,0.00022475,2]
[336920846,1725241892777,-979.92,0.00022475,2]
[336920847,1725241892787,-500.0,0.00022475,2]
[336920848,1725241892796,-500.0,0.00022475,2]
[336920849,1725241892805,-500.0,0.00022475,2]
[336920850,1725241892814,-500.0,0.00022475,2]
[336920851,1725241892823,-351.8932684,0.00022475,2]
[336920852,1725241892838,-552.67,0.00022475,2]
[336920853,1725241892847,-1125.19,0.00022475,2]
[336920854,1725241892857,-500.0,0.00022475,2]
[336920855,1725241892867,-695.14,0.00022475,2]
[336920856,1725241892876,-1024.1,0.00022475,2]
[336920857,1725241892885,-677.64,0.00022475,2]
[336920858,1725241892894,-617.78,0.00022475,2]
[336920859,1725241892904,-500.0,0.00022475,2]
[336920860,1725241892913,-1003.09,0.00022475,2]
[336920861,1725241892922,-500.0,0.00022475,2]
[336920862,1725241892931,-500.0,0.00022475,2]
[336920863,1725241892941,-500.0,0.00022475,2]
[336920864,1725241892950,-614.88,0.00022475,2]
[336920865,1725241892959,-500.0,0.00022475,2]
[336920866,1725241892968,-154.316311,0.00022475,7]
[336920867,1725241892981,-500.0,0.00022475,2]
[336920868,1725241892991,-581.69,0.00022475,2]
[336920869,1725241893000,-500.0,0.00022475,2]
[336920870,1725241893011,-500.0,0.00022475,2]
[336920871,1725241893020,-570.0,0.00022475,2]
[336920872,1725241893031,-1127.57,0.00022475,2]
[336920873,1725241893041,-500.0,0.00022475,2]
[336920874,1725241893051,-500.0,0.00022475,2]
[336920875,1725241893060,-623.63,0.00022475,2]
[336920876,1725241893070,-500.0,0.00022475,2]
[336920877,1725241893080,-500.0,0.00022475,2]
[336920878,1725241893091,-507.02,0.00022475,2]
[336920879,1725241893100,-403.86280209,0.00022475,2]
[336920880,1725241893110,-817.06,0.00022475,2]
[336920881,1725241893119,-905.53,0.00022475,2]
[336920882,1725241893129,-817.06,0.00022475,2]
[336920883,1725241893139,-817.06,0.00022475,2]
[336920884,1725241893149,-1466.58,0.00022475,2]
[336920885,1725241893159,-1199.6,0.00022475,2]
[336920886,1725241893169,-1099.01,0.00022475,2]
[336920887,1725241893178,-1099.01,0.00022475,2]
[336920888,1725241893188,-1099.01,0.00022475,2]
[336920889,1725241893198,-500.0,0.00022475,2]
[336920890,1725241893207,-500.0,0.00022475,2]
[336920891,1725241893216,-736.59,0.00022475,2]
[336920892,1725241893230,-500.0,0.00022475,2]
[336920893,1725241893240,-736.59,0.00022475,2]
[336920894,1725241893250,-723.81,0.00022475,2]
[336920895,1725241893260,-736.59,0.00022475,2]
[336920896,1725241893270,-913.51,0.00022475,2]
[336920897,1725241893279,-913.51,0.00022475,2]
[336920898,1725241893289,-913.51,0.00022475,2]
[336920899,1725241893299,-2802.61,0.00022475,2]
[336920900,1725241893309,-500.0,0.00022475,2]
[336920901,1725241893319,-500.0,0.00022475,2]
[336920902,1725241893328,-657.78,0.00022475,2]
[336920903,1725241893338,-578.71,0.00022475,2]
[336920904,1725241893347,-578.71,0.00022475,2]
[336920905,1725241893356,-578.71,0.00022475,2]
[336920906,1725241893365,-520.92,0.00022475,2]
[336920907,1725241893375,-520.92,0.00022475,2]
[336920908,1725241893384,-520.92,0.00022475,2]
[336920909,1725241893394,-500.0,0.00022475,2]
[336920910,1725241893403,-500.0,0.00022475,2]
[336920911,1725241893414,-258.98469056,0.00022475,2]
[336920912,1725241893424,-500.0,0.00022475,2]
[336920913,1725241893433,-1274.57,0.00022475,2]
[336920914,1725241893442,-953.71,0.00022475,2]
[336920915,1725241893451,-500.0,0.00022475,2]
[336920916,1725241893461,-953.71,0.00022475,2]
[336920917,1725241893470,-953.71,0.00022475,2]
[336920918,1725241893483,-500.0,0.00022475,2]
[336920919,1725241893491,-2875.94,0.00022475,2]
[336920920,1725241893501,-2875.94,0.00022475,2]
[336920921,1725241893510,-2875.94,0.00022475,2]
[336920922,1725241893519,-2114.16,0.00022475,2]
[336920923,1725241893528,-500.0,0.00022475,2]
[336920924,1725241893538,-2846.06,0.00022475,2]
[336920925,1725241893547,-2846.06,0.00022475,2]
[336920926,1725241893557,-500.0,0.00022475,2]